Cogmind - Beta 12 @@@ ROGUE MODE // 2023.06.04 @ 20:23:14 Player: Mr Goldstein Result: Destroyed by S-27 Virus with Autogun Performance ------------- Evolutions (3) 1500 Regions Visited (6) 1200 Robots Destroyed (31) 155 Value Destroyed (1155) 1155 Prototype IDs (1) 20 Alien Tech Used (0) 0 Bonus (149) 149 TOTAL SCORE: 4179 Bonus ------- High Alert Combat Kills 149 Cogmind --------- Core Integrity 0/700 Matter 69/300 Energy 99/100 System Corruption 2% Temperature Cool (0) Movement Core (50) Location -7/Lower Caves Parts ------- > --- POWER (1) -------- (None) > --- PROPULSION (5) --- (None) > --- UTILITY (5) ------ Improved Signal Interpreter > --- WEAPON (2) ------- (None) > --- INVENTORY (5) ---- Improved Deuterium Engine Small Storage Unit Mini Grenade Launcher Mini Grenade Launcher Peak State ------------ > --- POWER ------------ (None) > --- PROPULSION ------- (None) > --- UTILITY ---------- Improved Signal Interpreter Heart of Steel > --- WEAPON ----------- (None) > --- INVENTORY -------- Improved Deuterium Engine Small Storage Unit Mini Grenade Launcher Mini Grenade Launcher [Rating: 27] Favorites ----------- Power None Propulsion Flight Unit Flight Unit Flight Unit Utility Improved Signal Interpreter Device Heart of Steel Processor Improved Signal Interpreter Weapon Mini Grenade Launcher Launcher Mini Grenade Launcher Build | -11 -10 -9 -8 -7 -7 -7 ------- Run | Jun Mat Mat Mat Fac Low Low Slots Evolved 6 | . . 2 2 2 . . Power . | . . . . . . . Propulsion 3 | . . 1 1 1 . . Utility 3 | . . 1 1 1 . . Weapon . | . . . . . . . Parts Attached 10 | . 2 . 4 3 . 1 Power . | . . . . . . . Engine . | . . . . . . . Core . | . . . . . . . Reactor . | . . . . . . . Propulsion 3 | . . . 3 . . . Treads . | . . . . . . . Leg . | . . . . . . . Wheel . | . . . . . . . Hover . | . . . . . . . Flight 3 | . . . 3 . . . Utility 2 | . . . . 1 . 1 Device 1 | . . . . . . 1 Storage . | . . . . . . . Processor 1 | . . . . 1 . . Hackware . | . . . . . . . Protection . | . . . . . . . Artifact . | . . . . . . . Weapon 5 | . 2 . 1 2 . . Energy Gun . | . . . . . . . Energy Cannon . | . . . . . . . Ballistic Gun . | . . . . . . . Ballistic Cannon . | . . . . . . . Launcher 5 | . 2 . 1 2 . . Special Weapon . | . . . . . . . Impact Weapon . | . . . . . . . Slashing Weapon . | . . . . . . . Piercing Weapon . | . . . . . . . Special Melee Weapon . | . . . . . . . Unidentified Prototypes 1 | . . . . . . 1 Parts Lost 6 | . . . 2 3 1 . Power . | . . . . . . . Propulsion 3 | . . . 2 1 . . Utility . | . . . . . . . Weapon 3 | . . . . 2 1 . Highest Loss Streak 2 | . . . 2 2 1 . To Critical Strikes . | . . . . . . . Average Slot Usage (%) 11 | . 4 . 19 14 7 7 Flight 2 | . . . 12 1 . . Processor 2 | . . . . 1 7 7 Launcher 6 | . 4 . 6 11 . . Naked Turns 103 | . 53 39 11 . . . Heaviest Build 2 | . . . 1 2 1 . Greatest Support 12 | 3 3 3 12 4 3 3 Greatest Overweight (x) . | . . . . . . . Average Overweight (x) . | . . . . . . . Largest Inventory Capacity 5 | 5 5 5 5 5 5 5 Average Capacity 5 | 5 5 5 5 5 5 5 Most Carried 5 | 1 5 5 5 5 4 4 Average Carried 3 | . 4 5 4 3 4 4 Final Capacity 5 | 5 5 5 5 5 5 5 Final Carried 5 | 1 5 5 5 4 4 4 Class Distribution -------------------- 100% | Mutant Dominant Class ---------------- Mutant | -10/Materials Mutant | -9/Materials Mutant | -8/Materials Mutant | -7/Factory Mutant | -7/Lower Caves Mutant | -7/Lower Caves Resources | -11 -10 -9 -8 -7 -7 -7 ----------- Run | Jun Mat Mat Mat Fac Low Low Matter Collected 342 | 200 . . 11 66 65 . Remotely . | . . . . . . . Salvage Created 750 | . 49 . 33 668 . . Parts 43 | . 3 . 6 34 . . Haulers Intercepted . | . . . . . . . Recyclers Shooed . | . . . . . . . Parts Field Recycled . | . . . . . . . Retrieved Matter . | . . . . . . . Parts Self-Destructed 1 | . . . . . . 1 Prevented . | . . . . . . . Kills | -11 -10 -9 -8 -7 -7 -7 ------- Run | Jun Mat Mat Mat Fac Low Low Combat Hostiles Destroyed 23 | . 2 . 4 17 . . AOE 23 | . 2 . 4 17 . . Classes Destroyed 8 | . 1 . 1 6 . . Worker 3 | . . . . 3 . . Builder 2 | . . . . 2 . . Tunneler 1 | . . . . 1 . . Recycler 2 | . . . . 2 . . Swarmer 4 | . . . 4 . . . Grunt 16 | . 2 . . 14 . . Brawler 2 | . . . . 2 . . Hunter 1 | . . . . 1 . . Best Kill Streak 7 | . 2 . 3 7 . . Combat Bots Only 5 | . 2 . 3 5 . . Max Kills in Single Turn 4 | . 1 . 2 4 . . Gunslinging . | . . . . . . . Exploded 3 | . 1 . 2 3 . . Melee . | . . . . . . . Uniques/NPCs Destroyed . | . . . . . . . Combat | -11 -10 -9 -8 -7 -7 -7 -------- Run | Jun Mat Mat Mat Fac Low Low Damage Taken 1236 | . 153 99 150 364 104 366 Core 1037 | . 134 99 97 252 89 366 Absorbed by Shields . | . . . . . . . Core Remaining (%) 75 | 100 46 75 82 . . . Volleys Fired 20 | . 3 . 3 13 1 . Largest 2 | . 2 . 1 2 1 . Hottest 60 | . 60 . 30 60 30 . Shots Fired 32 | . 6 . 3 22 1 . Gun . | . . . . . . . Cannon . | . . . . . . . Launcher 32 | . 6 . 3 22 1 . Special . | . . . . . . . Kinetic . | . . . . . . . Thermal . | . . . . . . . Explosive 32 | . 6 . 3 22 1 . Electromagnetic . | . . . . . . . Robot Hit Streak 2 | . . . . 2 1 . Robot Miss Streak 1 | . . . . 1 . . Penetration Max . | . . . . . . . Secondary Targets . | . . . . . . . Shots Hit Robots 3 | . . . . 2 1 . Core Hits 56 | . 3 1 4 45 3 . Critical Kills . | . . . . . . . Critical Parts Destroyed . | . . . . . . . Critical Strikes . | . . . . . . . Melee Attacks . | . . . . . . . Impact . | . . . . . . . Slashing . | . . . . . . . Piercing . | . . . . . . . Sneak Attacks . | . . . . . . . Combat Hostiles . | . . . . . . . Follow-up Attacks . | . . . . . . . Damage Inflicted 3503 | . 218 7 202 2960 116 . Guns . | . . . . . . . Cannons . | . . . . . . . Explosions 3482 | . 218 . 202 2946 116 . Melee . | . . . . . . . Ramming 21 | . . 7 . 14 . . Kinetic . | . . . . . . . Thermal 971 | . . . . 971 . . Explosive 2460 | . 218 . 202 1924 116 . Electromagnetic 51 | . . . . 51 . . Impact . | . . . . . . . Slashing . | . . . . . . . Piercing . | . . . . . . . Highest Corruption 2 | . . . . 2 2 2 Average Corruption 1 | . . . . 1 2 2 Corruption Purged . | . . . . . . . Corruption Blocked . | . . . . . . . Effects 5 | . . . . 2 2 1 Message Errors 2 | . . . . 1 1 . Energy Discharges 1 | . . . . . . 1 Data Loss (minor) 1 | . . . . 1 . . Data Loss (major) 1 | . . . . . 1 . Overload Shots . | . . . . . . . Overflow Damage 168 | . . . 1 167 . . Projectiles . | . . . . . . . Explosions 168 | . . . 1 167 . . Melee . | . . . . . . . Knockbacks . | . . . . . . . Impact . | . . . . . . . Kinetic . | . . . . . . . Secondary . | . . . . . . . Self-Inflicted Damage 113 | . 9 3 48 53 . . Shots 5 | . 1 . 2 2 . . Rammed 4 | . . 3 . 1 . . Targets Rammed 4 | . . 3 . 1 . . Kicked . | . . . . . . . Crushed . | . . . . . . . Highest Temperature 41 | . 41 . 2 . . . Average Temperature 27 | . 30 . 2 . . . Received Heat Transfer 429 | . 99 57 27 165 63 18 Siege Activations . | . . . . . . . Robots Corrupted . | . . . . . . . Combat Hostiles . | . . . . . . . Parts Fried . | . . . . . . . Impact Corruptions . | . . . . . . . Robots Melted . | . . . . . . . Combat Hostiles . | . . . . . . . Parts Melted . | . . . . . . . Heat Transferred 650 | . . . . 650 . . Parts Sabotaged . | . . . . . . . Parts Stolen . | . . . . . . . Parts Stripped . | . . . . . . . Power Chain Reactions . | . . . . . . . Missiles Intercepted . | . . . . . . . Alert | -11 -10 -9 -8 -7 -7 -7 ------- Run | Jun Mat Mat Mat Fac Low Low Peak Influence 1108 | . 180 136 304 1108 . . Initial 137 | . . 76 57 137 . . Average 485 | . 73 117 165 688 . . Maximum Alert Level 4 | . . . 1 4 . . Low Security (%) 33 | 100 100 100 71 4 . . Level 1 16 | . . . 28 19 . . Level 2 18 | . . . . 27 . . Level 3 30 | . . . . 47 . . Level 4 . | . . . . 1 . . Level 5 . | . . . . . . . High Security . | . . . . . . . Max Security . | . . . . . . . Squads Dispatched 14 | . 3 3 . 7 . 1 Investigation 7 | . 2 . . 5 . . Extermination 1 | . . . . 1 . . Reinforcement 5 | . 1 3 . 1 . . Assault 1 | . . . . . . 1 Garrison . | . . . . . . . Intercept . | . . . . . . . Searches Triggered . | . . . . . . . Construction Impeded . | . . . . . . . Haulers Reinforced . | . . . . . . . Active Scanning Responses . | . . . . . . . Cargo Convoy Interrupts . | . . . . . . . Stealth | -11 -10 -9 -8 -7 -7 -7 --------- Run | Jun Mat Mat Mat Fac Low Low Distress Signals 1 | . . . 1 . . . Communications Jammed . | . . . . . . . Distress Signals . | . . . . . . . Times Spotted 78 | . 5 10 16 29 7 11 Peak Tracking Total 16 | . 5 7 16 6 4 15 Tactical Retreats 9 | . . . 2 2 4 1 Traps | -11 -10 -9 -8 -7 -7 -7 ------- Run | Jun Mat Mat Mat Fac Low Low Traps Triggered . | . . . . . . . Indirectly . | . . . . . . . Trap Hack Attempts . | . . . . . . . Triggered . | . . . . . . . Disarmed . | . . . . . . . Reprogrammed . | . . . . . . . Reused . | . . . . . . . Traps Extracted . | . . . . . . . Installed . | . . . . . . . Triggered 1 | . . . . . 1 . Machines | -11 -10 -9 -8 -7 -7 -7 ---------- Run | Jun Mat Mat Mat Fac Low Low Machines Disabled 19 | . 1 . . 18 . . Max in Single Turn 14 | . 1 . . 14 . . Machines Repaired . | . . . . . . . Machines Sabotaged . | . . . . . . . Overloaded Fab Kills . | . . . . . . . Hacking | -11 -10 -9 -8 -7 -7 -7 --------- Run | Jun Mat Mat Mat Fac Low Low Machines Accessed 10 | . 2 . . 7 . 1 Terminals 4 | . . . . 4 . . Fabricators 1 | . . . . 1 . . Repair Stations . | . . . . . . . Recycling Units 4 | . 2 . . 2 . . Scanalyzers . | . . . . . . . Garrison Access . | . . . . . . . Total Hacks 14 | . 2 . . 11 . 1 Successful 7 | . 2 . . 4 . 1 Failed 7 | . . . . 7 . . Catastrophic 4 | . . . . 4 . . Database Lockouts . | . . . . . . . Manual 7 | . 2 . . 5 . . Terminals 8 | . . . . 8 . . Fabricators 1 | . . . . 1 . . Repair Stations . | . . . . . . . Recycling Units 4 | . 2 . . 2 . . Scanalyzers . | . . . . . . . Garrison Access . | . . . . . . . Terminal Hacks 1 | . . . . . . 1 Open Door 1 | . . . . . . 1 Fabricator Hacks 1 | . . . . 1 . . Network Status 1 | . . . . 1 . . Repair Station Hacks . | . . . . . . . Recycling Unit Hacks . | . . . . . . . Scanalyzer . | . . . . . . . Garrison Access Hacks . | . . . . . . . Unauthorized Hacks 5 | . 2 . . 3 . . Terminals 1 | . . . . 1 . . Botnet 1 | . . . . 1 . . Fabricators . | . . . . . . . Repair Stations . | . . . . . . . Recycling Units 4 | . 2 . . 2 . . Tunnel 4 | . 2 . . 2 . . Scanalyzers . | . . . . . . . Garrison Access . | . . . . . . . Data Cores Recovered . | . . . . . . . Used . | . . . . . . . Hacking Detections 3 | . . . . 3 . . Full Trace Events 3 | . . . . 3 . . Feedback Events 1 | . . . . 1 . . Corruption 1 | . . . . 1 . . Feedback Blocked . | . . . . . . . Robot Schematics Acquired . | . . . . . . . Robots Built . | . . . . . . . Authchips . | . . . . . . . Time . | . . . . . . . Total Robot Build Rating . | . . . . . . . Part Schematics Acquired . | . . . . . . . Parts Built . | . . . . . . . Authchips . | . . . . . . . Time . | . . . . . . . Total Part Build Rating . | . . . . . . . Parts Repaired . | . . . . . . . Time . | . . . . . . . Parts Recycled . | . . . . . . . Recycled Matter . | . . . . . . . Retrieved Matter . | . . . . . . . Retrieved Components . | . . . . . . . Parts Scanalyzed . | . . . . . . . Part Schematics Acquired . | . . . . . . . Parts Damaged . | . . . . . . . Bothacking | -11 -10 -9 -8 -7 -7 -7 ------------ Run | Jun Mat Mat Mat Fac Low Low Used RIF Installer . | . . . . . . . Robots Hacked . | . . . . . . . Non-combat . | . . . . . . . Combat . | . . . . . . . Robot Hacks Applied . | . . . . . . . Relay Couplers Released . | . . . . . . . Fabnet Peak Effective % . | . . . . . . . Robots Rewired . | . . . . . . . Allies Hacked . | . . . . . . . Hacks Repelled . | . . . . . . . Allies | -11 -10 -9 -8 -7 -7 -7 -------- Run | Jun Mat Mat Mat Fac Low Low Total Allies 1 | . . . . . . 1 Largest Group 1 | . . . . . . 1 Highest-Rated Group 165 | . . . . . . 165 Highest-Rated Ally 165 | . . . . . . 165 Total Orders . | . . . . . . . Ally Attacks . | . . . . . . . Total Damage . | . . . . . . . Kills . | . . . . . . . Allies Corrupted . | . . . . . . . Allies Melted . | . . . . . . . Intel | -11 -10 -9 -8 -7 -7 -7 ------- Run | Jun Mat Mat Mat Fac Low Low Robot Analysis Total . | . . . . . . . Derelict Logs Recovered 2 | . . . . . 2 . Drone Launches . | . . . . . . . Drone Recoveries . | . . . . . . . Exploration | -11 -10 -9 -8 -7 -7 -7 ------------- Run | Jun Mat Mat Mat Fac Low Low Turns Passed 795 | 15 64 39 80 363 168 66 Spaces Moved 1508 | 28 95 71 173 682 332 127 Core 1175 | 28 95 71 25 497 332 127 Treads . | . . . . . . . Legs . | . . . . . . . Wheels . | . . . . . . . Hover . | . . . . . . . Flight 333 | . . . 148 185 . . Fastest Speed 34 | 50 50 50 34 40 50 50 Average Speed 47 | 50 50 50 39 47 50 50 Slowest Speed 50 | 50 50 50 50 50 50 50 Overloaded Moves . | . . . . . . . Propulsion Burnouts . | . . . . . . . Robots Hopped 6 | . . . 6 . . . Cave-ins Triggered . | . . . . . . . Exploration Rate (%) 27 | 3 29 15 26 29 70 21 Regions Visited 6 Branch Regions 2 Pre-discovered Areas 5 | . 2 . . 2 1 . Known Exits Taken 2 | . . . . 1 1 . Unknown Exits Taken 4 | 1 1 1 1 . . . Scrap Searched . | . . . . . . . Spaces Dug 35 | . 12 . 23 . . . Terrain Destroyed 181 | . 27 . 23 120 11 . Melee . | . . . . . . . Projectile . | . . . . . . . AOE 181 | . 27 . 23 120 11 . Terrain Rammed . | . . . . . . . Walls Destroyed . | . . . . . . . Machines Disabled . | . . . . . . . Actions | -11 -10 -9 -8 -7 -7 -7 --------- Run | Jun Mat Mat Mat Fac Low Low Total 1540 | 28 105 73 174 699 332 129 Wait . | . . . . . . . Move 1492 | 27 94 70 161 682 331 127 Hop 5 | . . . 5 . . . Pick Up 7 | 1 4 . 1 1 . . Fast Attach 5 | . . . 3 1 . 1 Attach 5 | . 2 . 1 2 . . Detach 2 | . 2 . . . . . Swap . | . . . . . . . Drop 1 | . . . . . . 1 Fire 20 | . 3 . 3 13 1 . Melee . | . . . . . . . Ram 3 | . . 3 . . . . Kick . | . . . . . . . Crush . | . . . . . . . Escape Stasis . | . . . . . . . Rewire . | . . . . . . . Trap . | . . . . . . . Miscellaneous . | . . . . . . . Route ------- -11/Junkyard -10/Materials -9/Materials -8/Materials -7/Factory (discovered 2 exits: *Fac / *Low) -7/Lower Caves -7/Lower Caves (discovered 1 exit: *Fac) History --------- Turn | Location | Event 6 | -11/Junkyard | Discovered new exit (range 16) 16 | -11/Junkyard | Entered Materials 67 | -10/Materials | Core integrity fell below 50% 72 | -10/Materials | Discovered new exit (range 16) 80 | -10/Materials | Entered another Materials area 80 | -9/Materials | Evolved 2 slots: Propulsion x1, Utility x1 115 | -9/Materials | Discovered new exit (range 9) 119 | -9/Materials | Entered another Materials area 119 | -8/Materials | Evolved 2 slots: Propulsion x1, Utility x1 192 | -8/Materials | Discovered new exit (range 3) 199 | -8/Materials | Entered Factory 199 | -7/Factory | Evolved 2 slots: Propulsion x1, Utility x1 310 | -7/Factory | Build established: Mutant 479 | -7/Factory | Discovered new exit (range 14) 504 | -7/Factory | Identified exit to Factory 554 | -7/Factory | Discovered new exit (range 15) 561 | -7/Factory | Identified exit to Lower Caves 562 | -7/Factory | Entered Lower Caves 567 | -7/Lower Caves | Encountered a Warlord checkpoint 681 | -7/Lower Caves | Identified exit to Lower Caves 730 | -7/Lower Caves | Entered another Lower Caves area 736 | -7/Lower Caves | Discovered exit to Factory (range 5) 743 | -7/Lower Caves | Found Prototype Device 743 | -7/Lower Caves | Identified Heart of Steel 754 | -7/Lower Caves | Attracted the attention of an 0b10 outpost 754 | -7/Lower Caves | Core integrity fell below 50% 780 | -7/Lower Caves | Core integrity fell below 20% 796 | -7/Lower Caves | Destroyed by S-27 Virus with Autogun Last Messages --------------- LOCATION=LOWER CAVES GOAL=ESCAPE 00736_ System corrupted: Energy discharge (-25). 00736_ EXIT=FOUND: FACTORY 00741_ Connecting with W-Fans Enter Here... >> Sealed Heavy Doors opened. 00742_ A derelict excitedly rushes up: "Another fan!" 00743_ Acquired Prototype Device. 00743_ Identified Heart of Steel. 00744_ PL-HR7: "WARLORD FOREVER!" 00744_ Dropped Heart of Steel. 00746_ PL-HR7: "Would you mind taking that present over there I've been working on and delivering it to 0b10? I'm sure it'll do a great job of lighting up their boring little complex." 00754_ Y-64 Sentinel: "DETECTED UNIDENTIFIED DERELICT." 00758_ Y-64 Sentinel: "REQUESTING BACKUP." 00769_ S-27 Virus destroyed. 00769_ Slug penetrates Wall. A strange signal echoes through the caves. Map ----- +----------------------------------------------------+ | ?????????????????????????????????????????????????? | | ?????????????????????????????????????????????????? | | ?????????????????????????????????????????????????? | | ?????????????????????????????????????????????????? | | ?????????????????????????????????????????????????? | | ?????????????????????????????????????????????????? | | ?????????????????????????????????????????????????? | | ?????????????????????????????????????????????????? | | ?????????????????????????????????????????????????? | | ?????????????????????????????????????????????????? | | ?????????????????????????????????????????????????? | | ?????????????????????????????????????????????????? | | ?????????????????????????????????????????????????? | | ?????????????????????????????????????????????????? | | ????????????????? ??????????????????????????????? | | ?????????????????? ?????????????????????????????? | | ??????????????????? ???????????????????????????? | | ??????????????????? ?????????????? ???????????? | | ???????????????????? ????????????? #?????????? | | ????????????????????# ??????##### ####?????? | | ????????????????????# ?????? #????? | | ????????????????????# ?????# ????? | | ????????????????????# ##### ????? | | ?????????????????????# # ?? # #????? | | ????????????????????## #?????# #????? | | ????????????????##### @ #???????# #????? | | ????????????????# ##????????# ##???# | | ????????????????# ## #?????????# ##### | | ????????????????????## ##?????????# | | ?????????????????????### #??????????# | | ???????????????????????## #??????????# | | ????????????????????????# #??????????# ### | | ????????????????????????# #??????????# ##?## | | ????????????????????????#s#??????????# ##???# | | ??????????????????????### ##????????## #????? | | ??????????????????????# ###?????## #????? | | ??????????????????????# ####### #????? | | ??????????????????????# ## #????? | | ??????????????????????# ?##### ##### ###????? | | ??????????????????????# ?????# #??????? | | ?????????????????????? ??????## # | | ??????????????????????#???????# ## #### | | ??????????????????????????????## ### #??????? | | ???????????????????????????????### ##?# # ??????? | | ?????????????????????????????????####??# # ?????? | | ??????????????????????????????????????? ????? | | ??????????????????????????????????????? ## ???? | | ??????????????????????????????????????? #??# ??? | | ???????????????????????????????????????#????#? ?? | | ?????????????????????????????????????????????? # ? | +----------------------------------------------------+ Best States ------------- Heat Dissipation 34 Energy Generation 5 Energy Capacity 100 Matter Stores 300 Matter Capacity 300 Sight Range 16 Terrain Scan Density 10 Evasion (%) 63 Item Schematics ----------------- None Robot Schematics ------------------ None Fabricated ------------ Nothing Alien Tech Used ----------------- None Achievements -------------- None Challenges ------------ None Game ------ Seed ProcessingHeartScrap Manual? 0 Play Time 00:09:32 Cumulative 275.1 hours Start 2023.06.04 @ 20:14:25 End 2023.06.04 @ 20:23:14 Sessions 1 Manual Loads 0 Difficulty Rogue Special Mode None Game No. 813 Rogue 813 Adventurer 0 Explorer 0 Win Type - Total 15 Types 8/0/5/2/0/0/0/0/0 Lore% 89 Gallery% 87 Achievement% 77 Wizard Run 0 Options --------- ASCII 0 Keyboard 0 Movement Numpad Keybinds 0 Fullscreen 1 Font 16/SmallcapsGlow Map View 75x55 Tactical HUD 1 Map Filters NONE Filters NONE Steam 1 RUN: 8709d093-1bb8-4181-9294-7b12c26a0779